[Event "Titled Tuesday Blitz May 10 Late 2022"]
[White "Bettalli, Francesco"]
[Black "Arabidze, Meri"]
[WhiteFideId "2816453"]
[BlackFideId "13604040"]
[WhiteElo "2216"]
[BlackElo "2335"]
[Result "0-1"]
[Round "11"]
[TimeControl "180+1"]
[Date "2022.05.10"]
[WhiteClock "0:00:13"]
[BlackClock "0:00:05"]

1. d4 {[%clk 0:03:00]}  Nf6 {[%clk 0:02:59]} 2. Nc3 {[%clk 0:03:01]}  d6 {[%clk 0:02:52]} 3. e4 {[%clk 0:03:00]}  e5 {[%clk 0:02:51]} 4. Nge2 {[%clk 0:02:59]}  Nc6 {[%clk 0:02:50]} 5. g3 {[%clk 0:02:59]}  g6 {[%clk 0:02:48]} 6. Bg2 {[%clk 0:02:59]}  Bg7 {[%clk 0:02:49]} 7. O-O {[%clk 0:02:59]}  O-O {[%clk 0:02:49]} 8. h3 {[%clk 0:02:59]}  Re8 {[%clk 0:02:38]} 9. Re1 {[%clk 0:02:57]}  exd4 {[%clk 0:02:31]} 10. Nxd4 {[%clk 0:02:58]}  Nxd4 {[%clk 0:02:26]} 11. Qxd4 {[%clk 0:02:59]}  Nxe4 {[%clk 0:02:14]} 12. Qe3 {[%clk 0:02:48]}  Nf6 {[%clk 0:02:07]} 13. Qd2 {[%clk 0:02:48]}  Rxe1+ {[%clk 0:02:05]} 14. Qxe1 {[%clk 0:02:49]}  c6 {[%clk 0:02:05]} 15. Bg5 {[%clk 0:02:48]}  d5 {[%clk 0:01:57]} 16. Rd1 {[%clk 0:02:48]}  Bf5 {[%clk 0:01:51]} 17. g4 {[%clk 0:02:46]}  Be6 {[%clk 0:01:39]} 18. Qe3 {[%clk 0:02:38]}  Qb6 {[%clk 0:01:35]} 19. Na4 {[%clk 0:02:17]}  Qxe3 {[%clk 0:01:32]} 20. Bxe3 {[%clk 0:02:18]}  Nd7 {[%clk 0:01:29]} 21. c3 {[%clk 0:02:15]}  Bf8 {[%clk 0:01:22]} 22. c4 {[%clk 0:02:12]}  dxc4 {[%clk 0:01:17]} 23. f4 {[%clk 0:02:03]}  Nb6 {[%clk 0:01:01]} 24. Nc5 {[%clk 0:01:45]}  Bd5 {[%clk 0:00:59]} 25. Nxb7 {[%clk 0:01:39]}  Bxg2 {[%clk 0:00:55]} 26. Kxg2 {[%clk 0:01:40]}  Nd5 {[%clk 0:00:55]} 27. Bd4 {[%clk 0:01:39]}  Nxf4+ {[%clk 0:00:44]} 28. Kf3 {[%clk 0:01:38]}  Ne6 {[%clk 0:00:43]} 29. Be5 {[%clk 0:01:36]}  Bg7 {[%clk 0:00:40]} 30. Bxg7 {[%clk 0:01:31]}  Kxg7 {[%clk 0:00:41]} 31. Na5 {[%clk 0:01:31]}  c5 {[%clk 0:00:34]} 32. Nxc4 {[%clk 0:01:31]}  Nd4+ {[%clk 0:00:34]} 33. Ke4 {[%clk 0:01:30]}  Rd8 {[%clk 0:00:28]} 34. Ne3 {[%clk 0:01:11]}  Re8+ {[%clk 0:00:25]} 35. Kd3 {[%clk 0:01:10]}  f5 {[%clk 0:00:25]} 36. gxf5 {[%clk 0:01:10]}  gxf5 {[%clk 0:00:25]} 37. Rf1 {[%clk 0:01:08]}  Kf6 {[%clk 0:00:23]} 38. Nd5+ {[%clk 0:01:08]}  Kg6 {[%clk 0:00:20]} 39. Rg1+ {[%clk 0:01:07]}  Kf7 {[%clk 0:00:20]} 40. Kc4 {[%clk 0:01:04]}  Nf3 {[%clk 0:00:16]} 41. Rd1 {[%clk 0:00:55]}  Re2 {[%clk 0:00:16]} 42. Kxc5 {[%clk 0:00:51]}  Rxb2 {[%clk 0:00:16]} 43. Rf1 {[%clk 0:00:48]}  Nh4 {[%clk 0:00:13]} 44. a4 {[%clk 0:00:43]}  Rb3 {[%clk 0:00:07]} 45. a5 {[%clk 0:00:43]}  Rxh3 {[%clk 0:00:06]} 46. a6 {[%clk 0:00:43]}  Ra3 {[%clk 0:00:06]} 47. Nc7 {[%clk 0:00:42]}  Rc3+ {[%clk 0:00:05]} 48. Kd6 {[%clk 0:00:42]}  Kg6 {[%clk 0:00:05]} 49. Nb5 {[%clk 0:00:40]}  Rd3+ {[%clk 0:00:06]} 50. Kc6 {[%clk 0:00:40]}  Kg5 {[%clk 0:00:06]} 51. Nxa7 {[%clk 0:00:38]}  Rc3+ {[%clk 0:00:06]} 52. Kb7 {[%clk 0:00:38]}  Rb3+ {[%clk 0:00:06]} 53. Kc7 {[%clk 0:00:38]}  Ra3 {[%clk 0:00:06]} 54. Kb6 {[%clk 0:00:38]}  f4 {[%clk 0:00:06]} 55. Nb5 {[%clk 0:00:38]}  Ra2 {[%clk 0:00:06]} 56. a7 {[%clk 0:00:36]}  f3 {[%clk 0:00:06]} 57. Nd4 {[%clk 0:00:35]}  Kg4 {[%clk 0:00:06]} 58. Rh1 {[%clk 0:00:33]}  f2 {[%clk 0:00:06]} 59. Nc2 {[%clk 0:00:22]}  Rb2+ {[%clk 0:00:05]} 60. Ka6 {[%clk 0:00:18]}  Rxc2 {[%clk 0:00:05]} 61. Ra1 {[%clk 0:00:16]}  Rc8 {[%clk 0:00:05]} 62. Kb7 {[%clk 0:00:16]}  Rf8 {[%clk 0:00:05]} 63. Rc1 {[%clk 0:00:17]}  Rf7+ {[%clk 0:00:03]} 64. Rc7 {[%clk 0:00:17]}  Rxc7+ {[%clk 0:00:03]} 65. Kxc7 {[%clk 0:00:18]}  f1=Q {[%clk 0:00:03]} 66. a8=Q {[%clk 0:00:18]}  Qf4+ {[%clk 0:00:04]} 67. Kd7 {[%clk 0:00:17]}  Qf5+ {[%clk 0:00:04]} 68. Kd6 {[%clk 0:00:18]}  Ng6 {[%clk 0:00:04]} 69. Qg8 {[%clk 0:00:14]}  Qf4+ {[%clk 0:00:04]} 70. Kd7 {[%clk 0:00:13]}  Qf5+ {[%clk 0:00:04]} 71. Kd6 {[%clk 0:00:13]}  h5 {[%clk 0:00:05]} 72. Qg7 {[%clk 0:00:10]}  Qe5+ {[%clk 0:00:04]} 73. Qxe5 {[%clk 0:00:10]}  Nxe5 {[%clk 0:00:05]} 74. Kxe5 {[%clk 0:00:11]}  h4 {[%clk 0:00:05]} 75. Ke4 {[%clk 0:00:11]}  h3 {[%clk 0:00:05]} 76. Ke3 {[%clk 0:00:12]}  Kg3 {[%clk 0:00:05]} 77. Ke2 {[%clk 0:00:13]}  Kg2 {[%clk 0:00:05]} 0-1


[Site "https://www.chess.com"]

[Event "Titled Tuesday Blitz May 10 Late 2022"]
[White "Bongo Akanga Ndjila, Barthelemy"]
[Black "Antonova, Nadezhda"]
[WhiteFideId "10609431"]
[BlackFideId "14700182"]
[WhiteElo "1768"]
[BlackElo "1743"]
[Result "0-1"]
[Round "11"]
[TimeControl "180+1"]
[Date "2022.05.11"]
[WhiteClock "0:01:47"]
[BlackClock "0:02:03"]

1. d4 {[%clk 0:02:44]}  Nf6 {[%clk 0:02:59]} 2. c4 {[%clk 0:02:38]}  g6 {[%clk 0:02:59]} 3. Nc3 {[%clk 0:02:37]}  Bg7 {[%clk 0:02:59]} 4. e4 {[%clk 0:02:37]}  d6 {[%clk 0:03:00]} 5. h3 {[%clk 0:02:37]}  O-O {[%clk 0:02:59]} 6. Be3 {[%clk 0:02:35]}  Na6 {[%clk 0:02:58]} 7. g4 {[%clk 0:02:33]}  c5 {[%clk 0:02:53]} 8. d5 {[%clk 0:02:32]}  e6 {[%clk 0:02:46]} 9. Nge2 {[%clk 0:02:30]}  exd5 {[%clk 0:02:45]} 10. cxd5 {[%clk 0:02:26]}  Re8 {[%clk 0:02:45]} 11. Ng3 {[%clk 0:02:26]}  Qa5 {[%clk 0:02:24]} 12. Qd2 {[%clk 0:02:25]}  Rb8 {[%clk 0:02:21]} 13. Bb5 {[%clk 0:02:21]}  Bd7 {[%clk 0:02:19]} 14. Bxd7 {[%clk 0:02:11]}  Nxd7 {[%clk 0:02:18]} 15. Bh6 {[%clk 0:02:03]}  Ne5 {[%clk 0:02:11]} 16. O-O-O {[%clk 0:01:52]}  Nc4 {[%clk 0:02:06]} 17. Qf4 {[%clk 0:01:47]}  Bxc3 {[%clk 0:02:03]} 0-1


[Site "https://www.chess.com"]

[Event "Titled Tuesday Blitz May 10 Late 2022"]
[White "Bortnyk, Olexandr"]
[Black "Paravyan, David"]
[WhiteFideId "14120828"]
[BlackFideId "4194985"]
[WhiteElo "2723"]
[BlackElo "2569"]
[Result "0-1"]
[Round "11"]
[TimeControl "180+1"]
[Date "2022.05.10"]
[WhiteClock "0:00:05"]
[BlackClock "0:00:08"]

1. d4 {[%clk 0:03:00]}  Nf6 {[%clk 0:02:59]} 2. Nc3 {[%clk 0:03:01]}  d5 {[%clk 0:02:59]} 3. Bf4 {[%clk 0:03:02]}  g6 {[%clk 0:02:59]} 4. e3 {[%clk 0:03:01]}  Bg7 {[%clk 0:02:59]} 5. h4 {[%clk 0:03:02]}  h5 {[%clk 0:02:58]} 6. Nb5 {[%clk 0:03:01]}  Na6 {[%clk 0:02:58]} 7. Nf3 {[%clk 0:03:02]}  O-O {[%clk 0:02:58]} 8. Be2 {[%clk 0:03:01]}  c6 {[%clk 0:02:57]} 9. Nc3 {[%clk 0:03:02]}  Bf5 {[%clk 0:02:54]} 10. a3 {[%clk 0:02:45]}  Nc7 {[%clk 0:02:54]} 11. Ng5 {[%clk 0:02:27]}  Nce8 {[%clk 0:02:23]} 12. Bd3 {[%clk 0:02:24]}  Bxd3 {[%clk 0:02:21]} 13. Qxd3 {[%clk 0:02:20]}  Nd6 {[%clk 0:02:16]} 14. f3 {[%clk 0:02:13]}  Qd7 {[%clk 0:02:14]} 15. O-O {[%clk 0:02:05]}  Rac8 {[%clk 0:02:12]} 16. Rae1 {[%clk 0:01:14]}  c5 {[%clk 0:01:11]} 17. dxc5 {[%clk 0:01:05]}  Rxc5 {[%clk 0:01:11]} 18. b4 {[%clk 0:01:06]}  Rcc8 {[%clk 0:01:04]} 19. Nxd5 {[%clk 0:01:02]}  Nxd5 {[%clk 0:01:04]} 20. Qxd5 {[%clk 0:01:02]}  Rxc2 {[%clk 0:01:03]} 21. Rd1 {[%clk 0:00:59]}  Qa4 {[%clk 0:00:49]} 22. Bxd6 {[%clk 0:00:50]}  exd6 {[%clk 0:00:50]} 23. Rd3 {[%clk 0:00:47]}  Qc6 {[%clk 0:00:36]} 24. Qxc6 {[%clk 0:00:38]}  bxc6 {[%clk 0:00:28]} 25. Rxd6 {[%clk 0:00:36]}  Rc3 {[%clk 0:00:28]} 26. a4 {[%clk 0:00:30]}  Be5 {[%clk 0:00:18]} 27. Rd7 {[%clk 0:00:27]}  Rxe3 {[%clk 0:00:19]} 28. Rb1 {[%clk 0:00:12]}  Rc3 {[%clk 0:00:16]} 29. Ne4 {[%clk 0:00:10]}  Rc4 {[%clk 0:00:16]} 30. Kf1 {[%clk 0:00:09]}  Rb8 {[%clk 0:00:15]} 31. Rxa7 {[%clk 0:00:08]}  Rbxb4 {[%clk 0:00:15]} 32. Rxb4 {[%clk 0:00:09]}  Rxb4 {[%clk 0:00:16]} 33. a5 {[%clk 0:00:09]}  Ra4 {[%clk 0:00:15]} 34. a6 {[%clk 0:00:09]}  Ra5 {[%clk 0:00:11]} 35. Ke2 {[%clk 0:00:09]}  Bd4 {[%clk 0:00:09]} 36. Rd7 {[%clk 0:00:05]}  Bb6 {[%clk 0:00:07]} 37. Ng5 {[%clk 0:00:04]}  Rxa6 {[%clk 0:00:07]} 38. Nxf7 {[%clk 0:00:03]}  Ra2+ {[%clk 0:00:08]} 39. Kd3 {[%clk 0:00:03]}  Rxg2 {[%clk 0:00:07]} 40. Ng5 {[%clk 0:00:02]}  Bf2 {[%clk 0:00:05]} 41. Ne6 {[%clk 0:00:01]}  Bxh4 {[%clk 0:00:05]} 42. Rg7+ {[%clk 0:00:01]}  Kh8 {[%clk 0:00:05]} 43. Rc7 {[%clk 0:00:02]}  Bf6 {[%clk 0:00:05]} 44. Rxc6 {[%clk 0:00:02]}  Rf2 {[%clk 0:00:03]} 45. Ke3 {[%clk 0:00:02]}  Ra2 {[%clk 0:00:03]} 46. Nf8 {[%clk 0:00:02]}  Kg7 {[%clk 0:00:03]} 47. Ne6+ {[%clk 0:00:02]}  Kf7 {[%clk 0:00:03]} 48. Nc5 {[%clk 0:00:03]}  Ra3+ {[%clk 0:00:03]} 49. Ke4 {[%clk 0:00:03]}  Rc3 {[%clk 0:00:04]} 50. Kd5 {[%clk 0:00:02]}  Be7 {[%clk 0:00:05]} 51. Ne4 {[%clk 0:00:02]}  Rxf3 {[%clk 0:00:04]} 52. Rc7 {[%clk 0:00:02]}  Rf5+ {[%clk 0:00:05]} 53. Kd4 {[%clk 0:00:02]}  Ke6 {[%clk 0:00:05]} 54. Rc6+ {[%clk 0:00:02]}  Kf7 {[%clk 0:00:05]} 55. Rc7 {[%clk 0:00:03]}  Ra5 {[%clk 0:00:06]} 56. Ke3 {[%clk 0:00:03]}  g5 {[%clk 0:00:06]} 57. Rb7 {[%clk 0:00:03]}  Ke6 {[%clk 0:00:06]} 58. Rb6+ {[%clk 0:00:03]}  Kf5 {[%clk 0:00:05]} 59. Rb7 {[%clk 0:00:02]}  Bc5+ {[%clk 0:00:05]} 60. Nxc5 {[%clk 0:00:02]}  Rxc5 {[%clk 0:00:06]} 61. Rf7+ {[%clk 0:00:01]}  Kg4 {[%clk 0:00:06]} 62. Rd7 {[%clk 0:00:02]}  Rf5 {[%clk 0:00:06]} 63. Rd4+ {[%clk 0:00:02]}  Rf4 {[%clk 0:00:06]} 64. Rd1 {[%clk 0:00:02]}  h4 {[%clk 0:00:07]} 65. Rg1+ {[%clk 0:00:03]}  Kh5 {[%clk 0:00:07]} 66. Rb1 {[%clk 0:00:04]}  Rf6 {[%clk 0:00:08]} 67. Rb8 {[%clk 0:00:04]}  Kg4 {[%clk 0:00:08]} 68. Rb4+ {[%clk 0:00:04]}  Kg3 {[%clk 0:00:08]} 69. Rb6 {[%clk 0:00:05]}  Rxb6 {[%clk 0:00:08]} 0-1


[Site "https://www.chess.com"]

[Event "Titled Tuesday Blitz May 10 Late 2022"]
[White "Can, Melih Kaan"]
[Black "Rorrer, Grayson"]
[WhiteFideId "6317383"]
[BlackFideId "30944996"]
[WhiteElo "2049"]
[BlackElo "2122"]
[Result "1-0"]
[Round "11"]
[TimeControl "180+1"]
[Date "2022.05.10"]
[WhiteClock "0:00:30"]
[BlackClock "0:00:33"]

1. e4 {[%clk 0:03:00]}  c5 {[%clk 0:02:53]} 2. Nf3 {[%clk 0:03:00]}  d6 {[%clk 0:02:43]} 3. c3 {[%clk 0:02:58]}  Nf6 {[%clk 0:02:41]} 4. h3 {[%clk 0:02:57]}  g6 {[%clk 0:02:39]} 5. Bd3 {[%clk 0:02:56]}  Bg7 {[%clk 0:02:38]} 6. Bc2 {[%clk 0:02:57]}  e5 {[%clk 0:02:34]} 7. O-O {[%clk 0:02:56]}  O-O {[%clk 0:02:31]} 8. d4 {[%clk 0:02:56]}  exd4 {[%clk 0:02:32]} 9. cxd4 {[%clk 0:02:56]}  cxd4 {[%clk 0:02:33]} 10. Nxd4 {[%clk 0:02:56]}  Re8 {[%clk 0:02:28]} 11. Nc3 {[%clk 0:02:54]}  Nc6 {[%clk 0:02:27]} 12. Ndb5 {[%clk 0:02:53]}  Bf8 {[%clk 0:02:17]} 13. Bg5 {[%clk 0:02:52]}  Re5 {[%clk 0:01:48]} 14. f4 {[%clk 0:02:43]}  Rc5 {[%clk 0:01:35]} 15. Nd5 {[%clk 0:02:16]}  Bg7 {[%clk 0:01:23]} 16. Nxd6 {[%clk 0:01:45]}  Rxd5 {[%clk 0:01:19]} 17. exd5 {[%clk 0:01:42]}  Qxd6 {[%clk 0:01:05]} 18. dxc6 {[%clk 0:01:41]}  Qc5+ {[%clk 0:01:06]} 19. Kh1 {[%clk 0:01:36]}  Be6 {[%clk 0:00:52]} 20. cxb7 {[%clk 0:01:31]}  Rb8 {[%clk 0:00:52]} 21. Bb3 {[%clk 0:01:31]}  Bf5 {[%clk 0:00:50]} 22. Rc1 {[%clk 0:01:26]}  Qb6 {[%clk 0:00:47]} 23. Qf3 {[%clk 0:01:00]}  Ne4 {[%clk 0:00:42]} 24. Qxe4 {[%clk 0:00:47]}  Bxe4 {[%clk 0:00:41]} 25. Rc8+ {[%clk 0:00:46]}  Bf8 {[%clk 0:00:41]} 26. Rxb8 {[%clk 0:00:45]}  Qc7 {[%clk 0:00:40]} 27. Rd8 {[%clk 0:00:34]}  Bxb7 {[%clk 0:00:40]} 28. Rfd1 {[%clk 0:00:30]}  Qc6 {[%clk 0:00:33]} 29. Bd5 {[%clk 0:00:30]} 1-0


[Site "https://www.chess.com"]

[Event "Titled Tuesday Blitz May 10 Late 2022"]
[White "Carrasco Miranda, Andres"]
[Black "Ardila, Oscar Humberto"]
[WhiteFideId "3405990"]
[BlackFideId "4404742"]
[WhiteElo "2177"]
[BlackElo "1928"]
[Result "0-1"]
[Round "11"]
[TimeControl "180+1"]
[Date "2022.05.11"]
[WhiteClock "0:00:07"]
[BlackClock "0:00:40"]

1. d4 {[%clk 0:03:00]}  Nf6 {[%clk 0:02:57]} 2. c4 {[%clk 0:03:00]}  e6 {[%clk 0:02:55]} 3. g3 {[%clk 0:02:59]}  Bb4+ {[%clk 0:02:54]} 4. Nc3 {[%clk 0:02:59]}  O-O {[%clk 0:02:53]} 5. Bg2 {[%clk 0:02:58]}  d6 {[%clk 0:02:53]} 6. Nf3 {[%clk 0:02:58]}  Bxc3+ {[%clk 0:02:53]} 7. bxc3 {[%clk 0:02:58]}  Nbd7 {[%clk 0:02:53]} 8. O-O {[%clk 0:02:58]}  c5 {[%clk 0:02:53]} 9. Nd2 {[%clk 0:02:45]}  Qc7 {[%clk 0:02:51]} 10. Rb1 {[%clk 0:02:43]}  Rb8 {[%clk 0:02:51]} 11. e3 {[%clk 0:02:37]}  b6 {[%clk 0:02:50]} 12. Qa4 {[%clk 0:02:35]}  e5 {[%clk 0:02:45]} 13. Rd1 {[%clk 0:02:18]}  Rd8 {[%clk 0:02:45]} 14. Bb2 {[%clk 0:01:52]}  Nf8 {[%clk 0:02:43]} 15. Qc6 {[%clk 0:01:27]}  Qxc6 {[%clk 0:02:39]} 16. Bxc6 {[%clk 0:01:27]}  Bg4 {[%clk 0:02:39]} 17. f3 {[%clk 0:01:20]}  Bf5 {[%clk 0:02:35]} 18. e4 {[%clk 0:01:18]}  Bg6 {[%clk 0:02:17]} 19. Nf1 {[%clk 0:01:13]}  Ne6 {[%clk 0:02:16]} 20. Ne3 {[%clk 0:01:01]}  Rbc8 {[%clk 0:01:32]} 21. d5 {[%clk 0:00:59]}  Nf8 {[%clk 0:01:27]} 22. a4 {[%clk 0:00:58]}  a5 {[%clk 0:01:25]} 23. Bc1 {[%clk 0:00:57]}  Rb8 {[%clk 0:01:25]} 24. Nc2 {[%clk 0:00:52]}  N6d7 {[%clk 0:01:19]} 25. Na3 {[%clk 0:00:50]}  f5 {[%clk 0:01:19]} 26. Bg5 {[%clk 0:00:47]}  Nf6 {[%clk 0:01:13]} 27. Bxf6 {[%clk 0:00:45]}  gxf6 {[%clk 0:01:13]} 28. exf5 {[%clk 0:00:44]}  Bxf5 {[%clk 0:01:13]} 29. Nb5 {[%clk 0:00:41]}  Bxb1 {[%clk 0:01:12]} 30. Rxb1 {[%clk 0:00:41]}  Kf7 {[%clk 0:01:09]} 31. Na7 {[%clk 0:00:37]}  Ng6 {[%clk 0:01:04]} 32. Bb5 {[%clk 0:00:37]}  Rb7 {[%clk 0:01:00]} 33. Nc6 {[%clk 0:00:36]}  Ra8 {[%clk 0:00:57]} 34. Kf2 {[%clk 0:00:26]}  f5 {[%clk 0:00:56]} 35. h4 {[%clk 0:00:22]}  h5 {[%clk 0:00:55]} 36. Re1 {[%clk 0:00:20]}  Kf6 {[%clk 0:00:54]} 37. f4 {[%clk 0:00:14]}  e4 {[%clk 0:00:49]} 38. Ke3 {[%clk 0:00:14]}  Rg8 {[%clk 0:00:48]} 39. Rg1 {[%clk 0:00:12]}  Ne7 {[%clk 0:00:47]} 40. Nxe7 {[%clk 0:00:09]}  Rxe7 {[%clk 0:00:46]} 41. Bc6 {[%clk 0:00:08]}  Reg7 {[%clk 0:00:46]} 42. Kf2 {[%clk 0:00:07]}  e3+ {[%clk 0:00:46]} 43. Kf3 {[%clk 0:00:06]}  e2 {[%clk 0:00:45]} 44. Kxe2 {[%clk 0:00:06]}  Rxg3 {[%clk 0:00:45]} 45. Rxg3 {[%clk 0:00:07]}  Rxg3 {[%clk 0:00:45]} 46. Be8 {[%clk 0:00:08]}  Rxc3 {[%clk 0:00:40]} 47. Bxh5 {[%clk 0:00:06]}  Rxc4 {[%clk 0:00:41]} 48. Bf3 {[%clk 0:00:06]}  Rxf4 {[%clk 0:00:40]} 49. h5 {[%clk 0:00:07]}  Rxa4 {[%clk 0:00:40]} 0-1


[Site "https://www.chess.com"]

[Event "Titled Tuesday Blitz May 10 Late 2022"]
[White "Cilek, Bora"]
[Black "Kujawski, Adam"]
[WhiteFideId "34502165"]
[BlackFideId "1100920"]
[WhiteElo "2429"]
[BlackElo "1982"]
[Result "1-0"]
[Round "11"]
[TimeControl "180+1"]
[Date "2022.05.11"]
[WhiteClock "0:01:16"]
[BlackClock "0:01:27"]

1. Nf3 {[%clk 0:03:00]}  d5 {[%clk 0:02:59]} 2. g3 {[%clk 0:02:58]}  Nc6 {[%clk 0:02:59]} 3. d4 {[%clk 0:02:58]}  Bf5 {[%clk 0:02:58]} 4. Bg2 {[%clk 0:02:57]}  Nb4 {[%clk 0:02:58]} 5. Na3 {[%clk 0:02:53]}  e6 {[%clk 0:02:57]} 6. O-O {[%clk 0:02:52]}  Nf6 {[%clk 0:02:57]} 7. c3 {[%clk 0:02:49]}  Na6 {[%clk 0:02:56]} 8. Nc2 {[%clk 0:02:40]}  Be7 {[%clk 0:02:56]} 9. Nh4 {[%clk 0:02:30]}  Be4 {[%clk 0:02:54]} 10. f3 {[%clk 0:02:30]}  Bxc2 {[%clk 0:02:34]} 11. Qxc2 {[%clk 0:02:29]}  O-O {[%clk 0:02:33]} 12. e4 {[%clk 0:02:27]}  c5 {[%clk 0:02:30]} 13. Rd1 {[%clk 0:02:07]}  cxd4 {[%clk 0:02:28]} 14. cxd4 {[%clk 0:02:07]}  Rc8 {[%clk 0:02:26]} 15. Qf2 {[%clk 0:02:06]}  Nh5 {[%clk 0:02:05]} 16. e5 {[%clk 0:01:50]}  Bxh4 {[%clk 0:02:03]} 17. gxh4 {[%clk 0:01:51]}  f6 {[%clk 0:02:01]} 18. Bh3 {[%clk 0:01:47]}  Qb6 {[%clk 0:01:46]} 19. Bg4 {[%clk 0:01:42]}  g6 {[%clk 0:01:38]} 20. Bxh5 {[%clk 0:01:37]}  gxh5 {[%clk 0:01:38]} 21. Bh6 {[%clk 0:01:36]}  fxe5 {[%clk 0:01:27]} 22. Qg3+ {[%clk 0:01:16]} 1-0


[Site "https://www.chess.com"]

[Event "Titled Tuesday Blitz May 10 Late 2022"]
[White "D`Arruda, Ricardo D."]
[Black "Kanyamarala, Trisha"]
[WhiteFideId "100692"]
[BlackFideId "45004722"]
[WhiteElo "2432"]
[BlackElo "2134"]
[Result "1-0"]
[Round "11"]
[TimeControl "180+1"]
[Date "2022.05.11"]
[WhiteClock "0:01:38"]
[BlackClock "0:00:11"]

1. Nf3 {[%clk 0:02:57]}  d5 {[%clk 0:02:59]} 2. d4 {[%clk 0:02:55]}  e6 {[%clk 0:02:59]} 3. c4 {[%clk 0:02:55]}  Nf6 {[%clk 0:02:59]} 4. Nc3 {[%clk 0:02:55]}  Be7 {[%clk 0:02:57]} 5. cxd5 {[%clk 0:02:55]}  exd5 {[%clk 0:02:57]} 6. Bf4 {[%clk 0:02:55]}  c6 {[%clk 0:02:55]} 7. e3 {[%clk 0:02:55]}  O-O {[%clk 0:02:56]} 8. Bd3 {[%clk 0:02:55]}  Nbd7 {[%clk 0:02:55]} 9. Qc2 {[%clk 0:02:51]}  Re8 {[%clk 0:02:54]} 10. O-O-O {[%clk 0:02:49]}  Nf8 {[%clk 0:02:54]} 11. Ne5 {[%clk 0:02:46]}  a5 {[%clk 0:02:48]} 12. f3 {[%clk 0:02:40]}  Ne6 {[%clk 0:02:39]} 13. Bg3 {[%clk 0:02:38]}  c5 {[%clk 0:02:38]} 14. dxc5 {[%clk 0:02:35]}  Nxc5 {[%clk 0:02:38]} 15. Bb5 {[%clk 0:02:33]}  Bd7 {[%clk 0:02:35]} 16. Nxd7 {[%clk 0:02:32]}  Ncxd7 {[%clk 0:02:33]} 17. Kb1 {[%clk 0:02:28]}  Rc8 {[%clk 0:02:30]} 18. Qd2 {[%clk 0:02:20]}  Qb6 {[%clk 0:02:27]} 19. Bxd7 {[%clk 0:02:19]}  Nxd7 {[%clk 0:02:25]} 20. Nxd5 {[%clk 0:02:18]}  Qg6+ {[%clk 0:02:25]} 21. e4 {[%clk 0:02:17]}  Bg5 {[%clk 0:02:14]} 22. Bf4 {[%clk 0:02:12]}  Bxf4 {[%clk 0:01:55]} 23. Nxf4 {[%clk 0:02:11]}  Qh6 {[%clk 0:01:55]} 24. Nd5 {[%clk 0:02:06]}  Qg6 {[%clk 0:01:49]} 25. h4 {[%clk 0:02:02]}  Ne5 {[%clk 0:01:47]} 26. h5 {[%clk 0:02:01]}  Qc6 {[%clk 0:01:39]} 27. h6 {[%clk 0:01:59]}  Nc4 {[%clk 0:01:38]} 28. Qd4 {[%clk 0:01:58]}  Re5 {[%clk 0:01:00]} 29. Qxe5 {[%clk 0:01:47]}  Nxe5 {[%clk 0:00:24]} 30. Ne7+ {[%clk 0:01:46]}  Kf8 {[%clk 0:00:19]} 31. Nxc6 {[%clk 0:01:47]}  Rxc6 {[%clk 0:00:17]} 32. hxg7+ {[%clk 0:01:45]}  Kxg7 {[%clk 0:00:18]} 33. Rd5 {[%clk 0:01:44]}  Nc4 {[%clk 0:00:16]} 34. b3 {[%clk 0:01:43]}  Na3+ {[%clk 0:00:16]} 35. Kb2 {[%clk 0:01:41]}  Nc2 {[%clk 0:00:14]} 36. Rc1 {[%clk 0:01:38]}  Nb4 {[%clk 0:00:11]} 37. Rxc6 {[%clk 0:01:38]}  bxc6 {[%clk 0:00:11]} 38. Rxa5 {[%clk 0:01:38]} 1-0


[Site "https://www.chess.com"]

[Event "Titled Tuesday Blitz May 10 Late 2022"]
[White "Daggupati, Balaji"]
[Black "Perez Molina, Robinson"]
[WhiteFideId "2090759"]
[BlackFideId "3403882"]
[WhiteElo "2648"]
[BlackElo "2252"]
[Result "1/2-1/2"]
[Round "11"]
[TimeControl "180+1"]
[Date "2022.05.10"]
[WhiteClock "0:00:15"]
[BlackClock "0:00:04"]

1. e4 {[%clk 0:03:00]}  e5 {[%clk 0:02:58]} 2. Nf3 {[%clk 0:03:01]}  Nc6 {[%clk 0:02:57]} 3. Bb5 {[%clk 0:03:01]}  a6 {[%clk 0:02:57]} 4. Ba4 {[%clk 0:03:02]}  Nf6 {[%clk 0:02:56]} 5. d4 {[%clk 0:03:02]}  exd4 {[%clk 0:02:56]} 6. O-O {[%clk 0:03:02]}  Be7 {[%clk 0:02:52]} 7. Re1 {[%clk 0:03:02]}  d6 {[%clk 0:02:45]} 8. Nxd4 {[%clk 0:03:00]}  Bd7 {[%clk 0:02:45]} 9. Nxc6 {[%clk 0:03:00]}  Bxc6 {[%clk 0:02:38]} 10. Bxc6+ {[%clk 0:02:58]}  bxc6 {[%clk 0:02:38]} 11. c4 {[%clk 0:02:59]}  O-O {[%clk 0:02:38]} 12. Nc3 {[%clk 0:02:59]}  Re8 {[%clk 0:02:37]} 13. f4 {[%clk 0:02:55]}  Bf8 {[%clk 0:02:34]} 14. Qf3 {[%clk 0:02:54]}  Rb8 {[%clk 0:02:34]} 15. b3 {[%clk 0:02:53]}  Qd7 {[%clk 0:02:13]} 16. Bb2 {[%clk 0:02:51]}  Qg4 {[%clk 0:02:11]} 17. Qf2 {[%clk 0:02:22]}  Qg6 {[%clk 0:02:03]} 18. Qd4 {[%clk 0:02:05]}  c5 {[%clk 0:01:57]} 19. Qd3 {[%clk 0:02:02]}  Re7 {[%clk 0:01:49]} 20. Re2 {[%clk 0:01:50]}  Rbe8 {[%clk 0:01:49]} 21. Rae1 {[%clk 0:01:50]}  Qg4 {[%clk 0:01:39]} 22. Rf1 {[%clk 0:01:23]}  Qd7 {[%clk 0:01:23]} 23. Qf3 {[%clk 0:01:08]}  Qc6 {[%clk 0:01:20]} 24. Rfe1 {[%clk 0:01:04]}  Qb7 {[%clk 0:01:06]} 25. g4 {[%clk 0:01:00]}  c6 {[%clk 0:00:54]} 26. g5 {[%clk 0:01:00]}  Nd7 {[%clk 0:00:54]} 27. Nd1 {[%clk 0:00:56]}  d5 {[%clk 0:00:46]} 28. exd5 {[%clk 0:00:45]}  Rxe2 {[%clk 0:00:46]} 29. Rxe2 {[%clk 0:00:45]}  Rxe2 {[%clk 0:00:46]} 30. Qxe2 {[%clk 0:00:46]}  cxd5 {[%clk 0:00:46]} 31. Qf3 {[%clk 0:00:47]}  Qb4 {[%clk 0:00:30]} 32. Bc3 {[%clk 0:00:37]}  Qb7 {[%clk 0:00:22]} 33. Ne3 {[%clk 0:00:35]}  Nb6 {[%clk 0:00:16]} 34. Ba5 {[%clk 0:00:20]}  Bd6 {[%clk 0:00:11]} 35. Bxb6 {[%clk 0:00:20]}  Qxb6 {[%clk 0:00:11]} 36. Nxd5 {[%clk 0:00:20]}  Qa5 {[%clk 0:00:11]} 37. Qe2 {[%clk 0:00:21]}  Kf8 {[%clk 0:00:10]} 38. Kg2 {[%clk 0:00:21]}  h6 {[%clk 0:00:08]} 39. gxh6 {[%clk 0:00:20]}  gxh6 {[%clk 0:00:08]} 40. Kf3 {[%clk 0:00:20]}  Qd8 {[%clk 0:00:08]} 41. Qe4 {[%clk 0:00:19]}  Qh4 {[%clk 0:00:08]} 42. Qf5 {[%clk 0:00:20]}  Qxh2 {[%clk 0:00:08]} 43. Nf6 {[%clk 0:00:20]}  Qh1+ {[%clk 0:00:07]} 44. Ke3 {[%clk 0:00:20]}  Qc1+ {[%clk 0:00:06]} 45. Kf3 {[%clk 0:00:19]}  Qf1+ {[%clk 0:00:06]} 46. Kg4 {[%clk 0:00:14]}  Qg2+ {[%clk 0:00:06]} 47. Kh4 {[%clk 0:00:14]}  Qh2+ {[%clk 0:00:05]} 48. Kg4 {[%clk 0:00:15]}  Qg2+ {[%clk 0:00:05]} 49. Kh5 {[%clk 0:00:14]}  Qh2+ {[%clk 0:00:04]} 50. Kg4 {[%clk 0:00:15]}  Qg2+ {[%clk 0:00:04]} 1/2-1/2


[Site "https://www.chess.com"]